bitfinex/quotes_SOLUSD_20250226
["timestamp","ask_amount","ask_price","bid_price","bid_amount"]
[1740550917043,81.1,141.89,141.87,1.6233]
[1740550917244,0.063,141.9,141.88,0.12549]
[1740550917865,0.063,141.9,141.89,7.17319]
[1740550918062,81.1,141.95,141.9,6.87748]
[1740550918268,0.063,141.96,141.9,6.87748]
[1740550918442,0.063,141.96,141.9,13.67748]
[1740550919257,0.063,141.96,141.9,13.55199]
[1740550919743,0.063,141.96,141.92,0.12549]
[1740550920077,0.063,141.96,141.92,7.17149]
[1740550921461,0.063,141.96,141.91,8.5615]
[1740550922270,81.1,141.95,141.91,1.5149]
[1740550923567,81.1,141.94,141.91,1.5149]
[1740550923772,81.1,141.93,141.91,1.5149]
[1740550924549,81.1,141.93,141.9,6.6265]
[1740550924857,88.1457,141.93,141.9,6.6265]
[1740550925061,88.1457,141.93,141.88,1.5296]
[1740550925462,81.1,141.92,141.88,1.5296]
[1740550925666,81.1,141.92,141.86,6.42769]
[1740550925667,81.1,141.91,141.86,6.3022]
[1740550926754,88.1468,141.91,141.9,0.03]
[1740550930277,25.69644886,141.91,141.9,0.03]
[1740550930579,32.43644886,141.91,141.9,0.03]
[1740550931654,33.43644886,141.91,141.9,0.03]
[1740550932270,34.43644886,141.91,141.9,0.03]
[1740550933056,20.0,141.88,141.82,6.0789]
[1740550933561,7.0468,141.91,141.83,7.17609]
[1740550933755,7.0457,141.93,141.83,7.17609]
[1740550934564,81.1,141.9,141.83,7.17609]
[1740550934765,81.1,141.92,141.86,0.12549]
[1740550934964,81.1,141.91,141.86,0.12549]
[1740550935475,81.1,141.91,141.86,7.17459]
[1740550936668,81.1,141.95,141.87,0.12549]
[1740550936866,81.1,141.94,141.89,0.12549]
[1740550937069,81.1,141.94,141.91,0.12549]
[1740550937264,0.063,141.96,141.91,0.25098]
[1740550937485,0.063,141.96,141.91,18.90062886]
[1740550937673,0.063,141.96,141.91,0.12549]
[1740550938281,81.1,141.95,141.88,6.2928]
[1740550938484,81.1,141.94,141.88,6.2928]
[1740550938790,99.74964886,141.93,141.86,0.03]
[1740550939091,7.0467,141.91,141.86,0.03]
[1740550940483,81.1,141.9,141.86,0.03]
[1740550940689,81.1,141.89,141.86,0.03]
[1740550942190,81.1,141.88,141.86,0.03]
[1740550942397,88.1487,141.87,141.86,0.03]
[1740550942689,32.47834886,141.87,141.86,0.03]
[1740550943887,6.78,141.87,141.86,0.03]
[1740550944096,13.8287,141.87,141.86,0.03]
[1740550945089,1.0,141.91,141.86,0.03]
[1740550945390,18.64964886,141.89,141.86,0.03]
[1740550945690,0.12549,141.88,141.86,0.03]
[1740550945871,99.74964886,141.87,141.86,0.03]
[1740550946673,106.79834886,141.87,141.86,0.03]
[1740550948870,25.69834886,141.87,141.86,0.03]
[1740550949980,24.6669,141.89,141.86,0.03]
[1740550950185,20.0,141.87,141.86,0.03]
[1740550950707,40.64964886,141.87,141.86,0.03]
[1740550950882,19.64964886,141.86,141.79,1.6252]
[1740550951081,18.64964886,141.84,141.79,1.6252]
[1740550951282,6.8,141.85,141.79,1.6252]
[1740550951698,18.64964886,141.84,141.79,1.6252]
[1740550952101,7.0506,141.83,141.79,1.6252]
[1740550952979,18.64964886,141.82,141.78,0.0001]
[1740550954405,7.0516,141.81,141.78,0.0001]
[1740550954791,107.54964886,141.8,141.78,0.0001]
[1740550955513,1.12549,141.79,141.78,0.0001]
[1740550955681,82.22549,141.79,141.78,0.0001]
[1740550956012,81.22549,141.79,141.78,0.0001]
[1740550956176,82.22549,141.79,141.78,0.0001]
[1740550956381,89.27809,141.79,141.78,0.0001]
[1740550957891,88.27809,141.79,141.78,0.0001]
[1740550959501,10.81064847,141.9,141.82,0.25098]
[1740550959678,81.1,141.89,141.82,0.12549]
[1740550959883,81.1,141.89,141.82,18.90062886]
[1740550960104,81.1,141.89,141.82,0.25098]
[1740550960292,81.1,141.89,141.81,20.0]
[1740550962913,81.1,141.89,141.81,20.03]
[1740550963091,81.163,141.89,141.81,27.0816]
[1740550964784,81.1,141.88,141.81,27.0816]
[1740550966423,81.1,141.88,141.82,0.12549]
[1740550967597,81.1,141.88,141.82,7.17619]
[1740550968122,81.1,141.88,141.83,0.12549]
[1740550968313,81.1,141.88,141.84,0.12549]
[1740550969706,81.1,141.88,141.83,13.4559]
[1740550970314,81.1,141.88,141.84,0.12549]
[1740550971728,81.1,141.88,141.84,7.17519]
[1740550973129,81.1,141.88,141.83,20.5065]
[1740550973320,81.1,141.87,141.83,6.4559]
[1740550973524,81.1,141.86,141.83,6.4559]
[1740550978635,81.1,141.85,141.83,6.4559]
[1740550981038,81.1,141.85,141.81,20.03]
[1740550981039,81.1,141.84,141.81,0.03]
[1740550981339,81.1,141.83,141.81,0.03]
[1740550981645,81.1,141.85,141.81,0.03]
[1740550981938,7.0501,141.84,141.81,0.03]
[1740550982244,88.1497,141.85,141.81,0.03]
[1740550983814,87.6497,141.85,141.81,0.03]
[1740550984547,80.6,141.84,141.81,0.03]
[1740550985042,87.6506,141.84,141.81,0.03]
[1740550986249,80.6,141.83,141.81,0.03]
[1740550986539,87.6507,141.83,141.81,0.03]
[1740550987321,80.6,141.83,141.81,0.03]
[1740550988941,80.6,141.87,141.81,1.6935]
[1740550989145,80.6,141.86,141.81,1.6935]
[1740550990724,87.6493,141.86,141.81,1.6935]
[1740550991051,87.6492,141.86,141.81,1.6935]
[1740550991953,80.6,141.86,141.81,1.6935]
[1740550992948,80.6,141.86,141.81,8.7451]
[1740550993349,80.6,141.85,141.81,1.6935]
[1740550993647,80.6,141.85,141.81,8.7451]
[1740550998663,80.6,141.85,141.83,6.3905]
[1740551000063,80.6,141.85,141.84,7.0501]
[1740551000262,0.063,141.85,141.84,7.0501]
[1740551004064,0.063,141.85,141.84,5.30340671]
[1740551004362,0.063,141.85,141.83,13.441]
[1740551006262,0.063,141.85,141.84,0.12549]
[1740551007866,0.063,141.85,141.84,0.25098]
[1740551008051,0.063,141.85,141.84,7.30108]
[1740551008368,0.063,141.85,141.84,33.75072886]
[1740551009346,0.063,141.85,141.84,32.75072886]
[1740551009547,0.063,141.85,141.84,33.75072886]
[1740551010154,0.063,141.85,141.84,32.75072886]
[1740551012181,0.063,141.85,141.84,14.10108]
[1740551012668,0.063,141.85,141.84,13.97559]
[1740551013448,0.063,141.85,141.84,7.17559]
[1740551014070,0.063,141.85,141.84,76.51199443]
[1740551015449,0.063,141.88,141.87,0.12549]
[1740551016673,0.063,141.88,141.87,7.17419]
[1740551021373,0.063,141.88,141.86,7.049]
[1740551022358,0.063,141.88,141.87,0.12549]
[1740551023274,0.063,141.88,141.87,7.17419]
[1740551023473,0.063,141.88,141.87,7.29968]
[1740551024177,0.063,141.88,141.87,26.94932886]
[1740551024362,0.063,141.88,141.87,79.09639443]
[1740551024964,0.063,141.89,141.87,79.09639443]
[1740551025192,0.063,141.91,141.9,0.12549]
[1740551025388,0.063,141.91,141.9,7.17269]
[1740551026660,0.063,141.91,141.9,25.94782886]
[1740551027391,0.063,141.91,141.9,32.32042886]
[1740551029785,0.063,141.91,141.9,81.88169443]
[1740551029984,87.2107,141.99,141.93,0.25098]
[1740551029985,80.663,141.99,141.93,0.25098]
[1740551030192,80.663,141.99,141.93,6.93098]
[1740551030680,80.663,141.99,141.95,0.12549]
[1740551031778,80.663,141.99,141.95,7.29568]
[1740551032588,80.663,141.99,141.95,25.94532886]
[1740551032887,0.063,141.99,141.95,25.94532886]
[1740551034582,0.063,141.99,141.95,7.17019]
[1740551035978,0.063,141.99,141.95,7.29568]
[1740551036173,0.063,141.99,141.95,7.17019]
[1740551037184,80.663,141.99,141.95,7.0447]
[1740551037587,80.6,141.98,141.88,59.1101496]
[1740551037905,82.11,141.95,141.88,7.078]
[1740551038683,82.11,141.95,141.88,0.03]
[1740551039094,82.11,141.95,141.88,25.85293886]
[1740551040608,89.1548,141.95,141.88,7.20329]
[1740551040903,80.6,141.94,141.88,0.15549]
[1740551041474,87.6453,141.94,141.88,0.15549]
[1740551041892,87.6453,141.94,141.88,0.03]
[1740551042090,87.6453,141.94,141.89,0.12549]
[1740551042593,87.6453,141.94,141.88,7.078]
[1740551045604,80.6,141.94,141.9,0.12549]
[1740551046496,80.6,141.94,141.9,0.25098]
[1740551046678,0.063,141.96,141.9,19.90062886]
[1740551047102,0.063,141.96,141.92,0.12549]
[1740551047400,0.063,141.95,141.92,0.12549]
[1740551047811,0.063,141.95,141.93,7.0457]
[1740551048395,0.063,141.95,141.91,6.66]
[1740551049809,0.063,141.95,141.91,13.7065]
[1740551050283,0.063,141.95,141.92,7.29708]
[1740551052200,0.063,141.95,141.92,57.85834557]
[1740551052505,0.063,141.95,141.92,75.47384557]
[1740551054896,0.063,141.95,141.94,8.29618]
[1740551055096,0.063,141.95,141.94,26.94582886]
[1740551059893,0.063,141.96,141.95,2.25098]
[1740551060093,0.063,141.99,141.98,20.12549]
[1740551060425,0.063,141.99,141.98,0.12549]
[1740551060724,0.0001,141.99,141.98,69.46189443]
[1740551061009,0.0001,142.0,141.99,2.25098]
[1740551061604,0.0001,142.0,141.99,9.29368]
[1740551062615,0.0001,142.0,141.99,12.07642018]
[1740551062809,0.0001,142.02,142.01,22.25098]
[1740551063016,0.0001,142.03,142.02,19.90062886]
[1740551063198,0.0001,142.04,142.03,1.25098]
[1740551063810,0.0001,142.04,142.03,50.81224557]
[1740551064004,0.063,142.1,142.08,0.12549]
[1740551064209,0.063,142.1,142.09,0.12549]
[1740551064595,0.063,142.1,142.09,7.28868]
[1740551068422,0.063,142.1,142.09,76.49959443]
[1740551070403,0.063,142.1,142.09,77.49959443]
[1740551071223,0.063,142.11,142.1,1.25098]
[1740551072327,0.063,142.11,142.1,19.90062886]
[1740551072529,0.063,142.11,142.1,26.93782886]
[1740551073034,0.063,142.11,142.1,27.93782886]
[1740551073534,0.063,142.11,142.1,77.49909443]
[1740551074617,0.0001,142.11,142.1,77.49909443]
[1740551075939,0.0001,142.11,142.1,213.69909443]
[1740551078247,0.0001,142.11,142.1,193.04944557]
[1740551079537,0.0001,142.11,142.1,56.84944557]
[1740551085931,0.0001,142.11,142.1,76.49909443]
[1740551086129,0.0001,142.12,142.11,19.90062886]
[1740551086444,0.0001,142.13,142.12,19.90062886]
[1740551087324,0.0001,142.13,142.12,26.93692886]
[1740551091345,0.0001,142.13,142.12,76.49819443]
[1740551092529,0.0001,142.14,142.13,19.90062886]
[1740551092729,0.0001,142.14,142.13,26.36062886]
[1740551093346,0.0001,142.14,142.13,33.39642886]
[1740551093931,0.0001,142.14,142.13,14.74678]
[1740551096243,0.0001,142.14,142.13,13.74678]
[1740551096452,1.5962,142.23,142.16,20.25098]
[1740551096640,82.1962,142.23,142.16,20.25098]
[1740551097846,82.1962,142.23,142.18,0.12549]
[1740551098955,82.1962,142.23,142.17,7.0338]
[1740551099849,82.1962,142.23,142.18,0.12549]
[1740551100438,82.1962,142.23,142.17,7.0338]
[1740551102456,82.1962,142.23,142.18,0.12549]
[1740551103261,82.1962,142.23,142.19,7.0328]
[1740551103854,80.6,142.22,142.16,20.0]
[1740551104044,80.13409602,142.21,142.16,20.0]
[1740551104250,80.13409602,142.21,142.17,0.12549]
[1740551104765,80.13409602,142.21,142.17,0.25098]
[1740551105845,80.13409602,142.21,142.18,7.0333]
[1740551106343,1.5962,142.23,142.19,0.25098]
[1740551106551,1.6262,142.23,142.19,0.25098]
[1740551107560,1.6262,142.23,142.18,7.0333]
[1740551107746,1.6262,142.23,142.17,0.25098]
[1740551107946,1.6262,142.23,142.17,7.28478]
[1740551108156,1.6262,142.23,142.17,24.86928]
[1740551109168,1.6262,142.23,142.17,25.86928]
[1740551109558,0.03,142.23,142.19,0.12549]
[1740551109762,0.03,142.23,142.19,50.81224557]
[1740551110058,0.03,142.23,142.22,20.12549]
[1740551111257,0.03,142.23,142.22,27.15679]
[1740551111583,0.03,142.23,142.21,7.0318]
[1740551111761,0.03,142.23,142.18,7.15879]
[1740551112157,0.03,142.23,142.18,7.0333]
[1740551114174,0.03,142.23,142.19,0.12549]
[1740551116355,0.03,142.23,142.17,13.61909]
[1740551116555,0.03,142.23,142.18,0.12549]
[1740551117179,1.6268,142.21,142.14,7.0353]
[1740551117472,1.6268,142.21,142.14,13.4953]
[1740551117863,1.6268,142.21,142.15,0.12549]
[1740551118270,1.6268,142.21,142.13,49.74975557]
[1740551118455,1.6268,142.21,142.13,56.78535557]
[1740551118651,80.13409602,142.2,142.13,7.0986]
[1740551118970,80.13409602,142.19,142.13,7.0986]
[1740551119156,80.13409602,142.18,142.13,0.063]
[1740551119888,80.13409602,142.18,142.14,0.25098]
[1740551121267,80.13409602,142.18,142.15,7.0348]
[1740551122478,80.13409602,142.18,142.13,0.063]
[1740551122676,80.13409602,142.18,142.14,7.0352]
[1740551124379,80.13409602,142.18,142.15,0.12549]
[1740551124582,80.13409602,142.18,142.16,7.0343]
[1740551124877,81.76089602,142.21,142.16,7.0343]
[1740551128087,88.79279602,142.21,142.16,7.0343]
[1740551128387,18.64964886,142.2,142.14,7.0353]
[1740551129282,88.79279602,142.21,142.14,7.0353]
[1740551129780,81.76089602,142.21,142.15,0.12549]
[1740551129994,80.13409602,142.2,142.15,0.12549]
[1740551130673,80.13409602,142.2,142.16,7.0343]
[1740551131406,1.6268,142.21,142.17,0.12549]
[1740551131563,80.13409602,142.22,142.17,0.12549]
[1740551132674,80.13409602,142.22,142.17,7.0338]
[1740551133366,0.03,142.23,142.18,0.25098]
[1740551133799,0.03,142.23,142.17,24.6183]
[1740551135808,0.03,142.23,142.17,7.0338]
[1740551136709,80.13409602,142.22,142.17,7.0338]
[1740551136886,18.64964886,142.21,142.16,13.4943]
[1740551137513,18.64964886,142.21,142.14,7.0353]
[1740551137514,80.13409602,142.2,142.14,7.0353]
[1740551138584,80.13409602,142.2,142.13,7.0988]
[1740551138784,80.13409602,142.19,142.13,7.0988]
[1740551141898,80.13409602,142.18,142.13,7.0988]
[1740551144302,80.13409602,142.18,142.14,0.25098]
[1740551144808,80.13409602,142.18,142.14,6.36008]
[1740551145587,18.67964886,142.23,142.16,0.25098]
[1740551145588,80.13409602,142.22,142.16,0.25098]
[1740551145902,80.13409602,142.22,142.17,6.46]
[1740551146909,80.13409602,142.22,142.18,0.25098]
[1740551147115,80.13409602,142.22,142.19,24.6149]
[1740551147422,0.03,142.23,142.19,7.0328]
[1740551149432,0.03,142.23,142.18,17.5831]
[1740551149623,0.03,142.23,142.18,24.6164]
[1740551150721,0.03,142.23,142.19,0.25098]
[1740551151635,0.03,142.23,142.2,7.0323]
[1740551153341,0.03,142.23,142.18,7.0333]
[1740551153549,80.16409602,142.23,142.18,7.0333]
[1740551154227,18.64964886,142.21,142.15,7.0976]
[1740551154418,80.13409602,142.2,142.15,0.063]
[1740551155528,80.13409602,142.2,142.15,7.0977]
[1740551156117,80.13409602,142.2,142.15,24.6847]
[1740551157323,80.13409602,142.2,142.16,0.12549]
[1740551157526,0.03,142.23,142.16,1.75998]
[1740551157726,0.03,142.23,142.17,24.6183]
[1740551160222,0.03,142.23,142.18,0.25098]
[1740551160530,0.03,142.23,142.19,6.46]
[1740551161336,0.03,142.23,142.2,7.0323]
[1740551164819,80.16409602,142.23,142.19,6.46]
[1740551165018,18.64964886,142.21,142.15,0.063]
[1740551165220,18.64964886,142.19,142.15,0.063]
[1740551166257,18.64964886,142.17,142.15,0.063]
[1740551166430,98.78374488,142.16,142.15,0.063]
[1740551166830,18.64964886,142.16,142.15,0.063]
[1740551167032,25.68394886,142.16,142.15,0.063]
[1740551168329,7.0328,142.19,142.15,0.063]
[1740551168633,88.1328,142.19,142.15,0.063]
[1740551168954,18.64964886,142.18,142.15,0.063]
[1740551169160,25.68334886,142.18,142.15,0.063]
[1740551170633,81.1,142.17,142.15,0.063]
[1740551172453,81.1,142.16,142.15,0.063]
[1740551174237,88.1343,142.16,142.15,0.063]
[1740551174964,7.0343,142.16,142.15,0.063]
[1740551175254,18.77513886,142.19,142.15,0.063]
[1740551175437,25.80793886,142.19,142.15,0.063]
[1740551176559,43.39003886,142.19,142.15,0.063]
[1740551176737,43.26454886,142.19,142.15,0.063]
[1740551178538,40.51362886,142.16,142.13,0.063]
[1740551178741,18.64964886,142.14,142.13,0.063]
[1740551178941,18.90062886,142.15,142.13,0.063]
[1740551179865,18.64964886,142.15,142.13,0.063]
[1740551180569,25.68494886,142.15,142.13,0.063]
[1740551181879,100.00062886,142.14,142.13,0.063]
[1740551182075,99.74964886,142.14,142.13,0.063]
[1740551182546,25.68494886,142.14,142.13,0.063]
[1740551183048,13.4949,142.15,142.13,0.063]
[1740551183544,32.14454886,142.15,142.13,0.063]
[1740551183746,18.64964886,142.14,142.13,0.063]
[1740551184149,25.68494886,142.14,142.13,0.063]
[1740551184750,25.81043886,142.14,142.13,0.0001]
[1740551185557,27.81043886,142.14,142.13,0.0001]
[1740551185758,34.33053886,142.14,142.13,0.0001]
[1740551185958,32.33053886,142.14,142.13,0.0001]
[1740551186672,25.68494886,142.14,142.13,0.0001]
[1740551187168,7.0353,142.14,142.13,0.0001]
[1740551187674,7.0348,142.15,142.13,0.0001]
[1740551188152,25.68444886,142.15,142.13,0.0001]
[1740551189470,18.90062886,142.1,142.09,0.063]
[1740551189672,25.93782886,142.1,142.09,0.063]
[1740551189967,25.68684886,142.1,142.09,0.063]
[1740551191953,27.0369,142.11,142.09,0.063]
[1740551192867,7.0369,142.11,142.09,0.063]
[1740551193270,7.0363,142.12,142.09,0.063]
[1740551193465,18.64964886,142.11,142.09,0.063]
[1740551195458,7.0372,142.1,142.09,0.063]
[1740551197776,7.16269,142.1,142.09,0.063]
[1740551198461,7.0372,142.1,142.09,0.063]
[1740551199367,7.16269,142.1,142.09,0.063]
[1740551199775,25.81233886,142.1,142.09,0.063]
[1740551200083,25.68684886,142.1,142.09,0.063]
[1740551202963,17.5907,142.12,142.09,0.063]
[1740551203170,7.0358,142.13,142.09,0.063]
[1740551203988,18.64964886,142.12,142.09,0.063]
[1740551204290,18.64964886,142.1,142.09,0.063]
[1740551204966,7.0368,142.11,142.09,0.063]
[1740551205872,18.64964886,142.12,142.09,0.063]
[1740551207087,25.68634886,142.12,142.09,0.063]
[1740551211988,38.64964886,142.1,142.09,0.063]
[1740551213184,45.68684886,142.1,142.09,0.063]
[1740551214989,7.0658,142.13,142.09,0.063]
[1740551215489,18.64964886,142.12,142.09,0.063]
[1740551215863,0.03,142.13,142.09,0.063]
[1740551217981,20.0,142.12,142.09,0.063]
[1740551219198,81.1,142.11,142.09,0.063]
[1740551220195,0.03,142.13,142.09,0.063]
[1740551222105,0.03,142.13,142.09,0.31398]
[1740551222685,0.03,142.13,142.1,1.5161]
[1740551223079,81.1,142.12,142.1,1.5161]
[1740551223583,81.1,142.12,142.09,0.063]
[1740551224190,88.1363,142.12,142.09,0.063]
[1740551225579,81.1,142.12,142.09,0.063]
[1740551227603,88.1363,142.12,142.09,0.063]
[1740551228610,81.1,142.12,142.09,0.063]
[1740551230922,0.03,142.13,142.09,0.31398]
[1740551232014,0.03,142.13,142.1,7.0372]
[1740551232223,0.03,142.13,142.12,1.5724]
[1740551232383,0.03,142.13,142.12,1.82338]
[1740551234090,0.03,142.13,142.12,61.35222886]
[1740551234291,0.03,142.13,142.12,60.35222886]
[1740551234512,0.03,142.13,142.12,41.70258]
[1740551235020,0.03,142.13,142.12,61.35222886]
[1740551235212,0.03,142.13,142.12,60.35222886]
[1740551235714,0.03,142.13,142.12,61.35222886]
[1740551237397,0.03,142.13,142.12,60.35222886]
[1740551239998,0.03,142.13,142.12,109.91349443]
[1740551240898,0.03,142.13,142.12,152.38349443]
[1740551241798,0.03,142.13,142.12,56.59756557]
[1740551241998,0.03,142.13,142.11,7.0367]
[1740551243416,0.03,142.13,142.09,8.36518]
[1740551243632,0.03,142.13,142.1,7.28818]
[1740551244301,0.03,142.13,142.1,25.93782886]
[1740551244624,0.03,142.13,142.1,7.28818]
[1740551245309,0.03,142.13,142.11,0.063]
[1740551247228,0.03,142.13,142.11,18.71264886]
[1740551247921,0.03,142.13,142.12,0.25098]
[1740551248121,0.03,142.13,142.12,68.46189443]
[1740551248829,0.03,142.13,142.12,56.84854557]
[1740551249009,0.03,142.13,142.12,56.59756557]
[1740551251622,0.03,142.13,142.12,56.84854557]
[1740551251807,0.03,142.13,142.12,75.49819443]
[1740551256812,0.03,142.13,142.12,75.56119443]
[1740551260619,0.38191265,142.2,142.18,0.25098]
[1740551262536,0.38191265,142.2,142.18,7.0333]
[1740551262846,0.38191265,142.2,142.14,0.12549]
[1740551263031,88.51421265,142.2,142.14,7.0353]
[1740551263419,81.48191265,142.2,142.14,7.0353]
[1740551264545,81.48191265,142.2,142.16,7.0343]
[1740551264743,0.38191265,142.2,142.17,0.25098]
[1740551264918,0.38191265,142.2,142.16,7.0343]
[1740551265946,0.38191265,142.2,142.17,0.25098]
[1740551266737,0.38191265,142.2,142.17,7.28428]
[1740551269046,0.38191265,142.2,142.19,0.25098]
[1740551269851,0.03,142.21,142.19,0.25098]
[1740551270647,0.03,142.21,142.2,7.0323]
[1740551274035,0.03,142.21,142.2,7.28328]
[1740551274559,0.03,142.21,142.2,7.0323]
[1740551274933,0.03,142.21,142.2,7.28328]
[1740551275134,0.03,142.21,142.2,25.93292886]
[1740551275750,0.03,142.21,142.2,7.28328]
[1740551276753,0.03,142.23,142.22,20.0]
[1740551277148,0.03,142.23,142.22,27.0313]
[1740551279048,0.03,142.23,142.22,20.0]
[1740551279252,0.03,142.23,142.2,0.25098]
[1740551279656,0.03,142.23,142.19,13.4928]
[1740551280232,0.03,142.23,142.2,0.25098]
[1740551280431,0.03,142.23,142.2,7.28278]
[1740551282952,0.03,142.23,142.22,20.25098]
[1740551284059,0.03,142.23,142.22,7.0313]
[1740551284238,0.03,142.23,142.19,7.0328]
[1740551284442,0.03,142.23,142.2,0.25098]
[1740551286265,0.03,142.23,142.21,7.0318]
[1740551287559,0.03,142.23,142.19,7.0328]
[1740551288277,0.03,142.23,142.17,7.0338]
[1740551288477,81.1,142.22,142.17,7.0338]
[1740551291163,81.1,142.21,142.14,6.69098]
[1740551291343,81.1,142.2,142.15,7.0348]
[1740551292473,87.1367,142.19,142.12,0.063]
[1740551292660,87.1367,142.19,142.12,7.0991]
[1740551293545,99.74964886,142.18,142.12,0.063]
[1740551293749,20.17464886,142.16,142.15,0.063]
[1740551294273,27.20894886,142.16,142.15,0.063]
[1740551298481,1.525,142.16,142.15,0.063]
[1740551298973,2.15549,142.23,142.15,0.063]
[1740551298974,81.1,142.18,142.15,0.063]
[1740551302290,81.1,142.17,142.15,0.063]
[1740551308979,81.1,142.16,142.15,0.063]
[1740551309480,18.64964886,142.16,142.15,0.063]
[1740551309682,20.33703886,142.16,142.15,0.063]
[1740551309885,18.77513886,142.15,142.12,0.063]
[1740551310196,26.396,142.13,142.12,0.063]
[1740551310362,45.17113886,142.13,142.12,0.063]
[1740551311164,52.33242886,142.13,142.12,0.063]
[1740551317685,54.33242886,142.13,142.12,0.063]
[1740551318403,52.08144886,142.13,142.12,0.063]
[1740551320160,7.0348,142.15,142.12,0.063]
[1740551321765,8.5963,142.16,142.12,0.063]
[1740551322264,81.1,142.14,142.12,0.063]
[1740551325890,81.1,142.14,142.13,20.0]
[1740551326591,81.1,142.18,142.13,20.0]
[1740551327098,81.1,142.18,142.14,7.0353]
[1740551330290,0.03,142.15,142.14,7.28628]
[1740551330482,0.03,142.15,142.14,8.84528]
[1740551332488,0.03,142.15,142.14,15.45888]
[1740551338197,0.03,142.15,142.14,1.559]
[1740551338400,0.03,142.15,142.13,76.59686557]
[1740551339275,0.03,142.15,142.12,0.063]
[1740551342480,0.03,142.15,142.12,7.0993]
[1740551345986,0.03,142.15,142.12,0.063]
[1740551356613,0.03,142.15,142.12,0.31398]
[1740551358513,0.03,142.15,142.12,0.063]
[1740551358914,0.03,142.15,142.12,7.0993]
[1740551361012,0.03,142.15,142.12,0.063]
[1740551364218,81.1,142.14,142.12,0.063]
[1740551364625,1.6574,142.13,142.12,0.063]
[1740551365213,8.6932,142.13,142.12,0.063]
[1740551379143,0.03,142.15,142.12,0.063]
[1740551379436,7.0354,142.14,142.12,0.063]
[1740551381116,7.065,142.15,142.12,0.063]
[1740551382033,0.03,142.15,142.12,0.063]
[1740551384427,0.03,142.15,142.12,0.31398]
[1740551385916,0.03,142.15,142.13,7.0358]
[1740551390340,0.03,142.15,142.12,0.063]
[1740551394856,81.1,142.14,142.12,0.063]
[1740551395250,81.1,142.13,142.12,0.063]
[1740551395961,20.0,142.13,142.12,0.063]
[1740551396671,27.0358,142.13,142.12,0.063]
[1740551398960,20.0,142.13,142.12,0.063]
[1740551400254,27.0358,142.13,142.12,0.063]
[1740551401767,47.93642886,142.13,142.12,0.063]
[1740551401944,46.93642886,142.13,142.12,0.063]
[1740551402366,47.93642886,142.13,142.12,0.063]
[1740551405776,45.68544886,142.13,142.12,0.063]
[1740551407578,7.0355,142.14,142.12,0.063]
[1740551409681,8.0355,142.14,142.12,0.063]
[1740551409879,7.0355,142.14,142.12,0.063]
[1740551410288,25.68544886,142.13,142.12,0.063]
[1740551413485,26.81093886,142.13,142.12,0.063]
[1740551413668,27.81093886,142.13,142.12,0.063]
[1740551417181,27.93642886,142.13,142.12,0.063]
[1740551420602,0.12549,142.07,142.04,0.063]
[1740551420896,18.64964886,142.06,142.04,0.063]